bitfinex/quotes_ETHUSD_20250331
["timestamp","ask_amount","ask_price","bid_price","bid_amount"]
[1743451154435,5.79419739,1831.3,1831.1,5.419]
[1743451154645,5.79419739,1831.3,1831.1,0.05]
[1743451155465,4.57981581,1831.2,1831.1,0.05]
[1743451156831,4.54481581,1831.2,1831.1,0.05]
[1743451159651,4.57981581,1831.3,1831.1,5.51105]
[1743451159838,4.57981581,1831.3,1831.1,0.05]
[1743451160261,10.04047581,1831.3,1831.1,0.05]
[1743451160465,1.78834758,1831.2,1831.1,0.05]
[1743451161039,1.00404758,1831.2,1831.1,0.05]
[1743451161234,4.57981581,1831.3,1831.1,0.05]
[1743451161863,10.04070581,1831.2,1831.1,0.05]
[1743451162061,13.83270581,1831.2,1831.1,0.05]
[1743451164172,14.24218997,1831.2,1831.1,0.05]
[1743451165375,5.46256,1830.7,1830.2,0.8114]
[1743451165567,4.57981581,1830.4,1830.2,0.8114]
[1743451165969,0.7567,1830.8,1830.2,0.8114]
[1743451166138,4.57981581,1830.7,1830.4,5.46312]
[1743451166338,4.57981581,1830.5,1830.3,5.46347]
[1743451166544,4.57981581,1830.6,1830.3,10.92687]
[1743451166941,4.57981581,1830.6,1830.3,5.46342]
[1743451167271,0.754,1831.2,1830.3,3.86603367]
[1743451167498,4.57981581,1831.1,1830.7,6.27368]
[1743451167774,4.57981581,1831.1,1830.7,11.64662]
[1743451167963,4.57981581,1831.1,1830.7,6.1844]
[1743451168160,4.57981581,1831.1,1830.9,5.46175]
[1743451168671,4.57981581,1831.1,1830.8,10.92398]
[1743451168967,4.57981581,1831.1,1830.9,5.46172]
[1743451169171,4.57981581,1831.1,1830.8,5.46204]
[1743451169371,4.57981581,1831.1,1831.0,5.46149]
[1743451169742,4.57981581,1831.1,1830.9,10.92345]
[1743451169990,5.03779739,1831.1,1830.7,0.8114]
[1743451170172,4.57981581,1830.8,1830.6,5.46258]
[1743451171379,4.57981581,1830.8,1830.5,6.26749]
[1743451171873,4.57981581,1830.6,1830.4,5.46328]
[1743451172271,4.57981581,1830.6,1830.3,6.22418]
[1743451172452,4.57981581,1830.6,1830.4,5.46318]
[1743451173354,4.57981581,1830.6,1830.3,0.7607]
[1743451173570,4.57981581,1830.6,1830.3,6.22427]
[1743451173750,5.03779739,1830.6,1830.3,6.22427]
[1743451174677,4.57981581,1830.4,1830.2,42.33976]
[1743451175682,4.57981581,1830.4,1830.2,31.503]
[1743451175882,4.57981581,1830.4,1830.2,36.96687]
[1743451176182,5.03779739,1830.6,1830.2,31.503]
[1743451176398,0.7972,1831.0,1830.3,0.7634]
[1743451176694,4.57981581,1830.8,1830.6,10.92513]
[1743451176977,4.57981581,1830.8,1830.7,5.46239]
[1743451177180,4.57981581,1830.8,1830.6,5.46256]
[1743451177381,4.57981581,1830.8,1830.5,5.46293]
[1743451177585,4.57981581,1830.6,1830.5,5.87092163]
[1743451177785,4.57981581,1830.6,1830.5,5.87097163]
[1743451178670,4.57981581,1830.6,1830.5,5.46298]
[1743451179764,4.57981581,1830.6,1830.4,5.46323]
[1743451179959,4.57981581,1830.6,1830.3,6.22683]
[1743451180160,5.03779739,1830.6,1830.3,6.22683]
[1743451180681,0.8237,1830.3,1830.1,0.05]
[1743451180906,4.57981581,1830.2,1830.1,0.05]
[1743451182002,10.04369581,1830.2,1830.1,0.05]
[1743451182208,4.57981581,1830.2,1830.1,0.05]
[1743451182533,5.66653539,1830.2,1830.1,0.05]
[1743451182654,4.57981581,1830.2,1830.1,0.05]
[1743451185672,10.86719581,1830.2,1830.1,0.05]
[1743451186393,5.40331581,1830.2,1830.1,0.05]
[1743451186897,10.86719581,1830.2,1830.1,0.05]
[1743451187194,12.50028939,1830.2,1830.1,0.05]
[1743451190209,12.50028939,1830.2,1829.6,5.46555]
[1743451190210,5.46514,1829.8,1829.5,1.85300607]
[1743451190371,4.57981581,1829.6,1829.5,1.06970607]
[1743451190571,4.57981581,1829.6,1829.3,6.28756]
[1743451190767,4.57981581,1829.6,1829.3,11.75399]
[1743451190970,4.57981581,1829.6,1829.3,0.8211]
[1743451191190,4.57981581,1829.4,1829.3,6.28754]
[1743451192074,4.57981581,1829.4,1829.1,11.69216]
[1743451192267,4.57981581,1829.2,1829.1,0.85]
[1743451192468,4.57981581,1829.2,1829.1,1.0538255]
[1743451193293,5.03779739,1829.2,1829.1,0.2538255]
[1743451194099,4.57981581,1829.2,1829.1,0.2538255]
[1743451194870,4.57981581,1829.4,1829.2,5.46676]
[1743451195070,4.57981581,1829.4,1829.1,11.1880355]
[1743451195269,4.57981581,1829.4,1829.3,5.46657]
[1743451195470,4.57981581,1829.4,1829.2,6.24985]
[1743451195697,9.24513,1829.8,1829.3,5.46657]
[1743451195698,3.7798,1829.8,1829.3,5.46657]
[1743451195870,4.57981581,1829.4,1829.3,5.46657]
[1743451196072,4.57981581,1829.5,1829.2,6.25003]
[1743451196293,0.37798,1829.7,1829.3,5.46629]
[1743451196488,4.57981581,1829.5,1829.2,6.25005]
[1743451196687,4.57981581,1829.5,1829.4,0.15520957]
[1743451196889,4.57981581,1829.5,1829.3,11.09424391]
[1743451197093,4.57981581,1829.5,1829.4,0.16060798]
[1743451197491,0.7773,1830.0,1829.5,0.8287]
[1743451197777,4.57981581,1830.0,1829.8,5.46492]
[1743451197982,4.57981581,1830.1,1829.9,0.93059226]
[1743451198706,4.57981581,1830.1,1829.9,6.39523226]
[1743451199006,4.57981581,1830.1,1829.9,0.93059226]
[1743451199406,4.57981581,1830.1,1829.9,6.39522226]
[1743451199627,4.57981581,1830.1,1829.9,0.93059226]
[1743451199822,1.27828158,1830.6,1829.9,1.67915773]
[1743451200024,4.57981581,1830.5,1830.0,5.376]
[1743451200191,4.57981581,1830.6,1830.2,0.8146]
[1743451200506,4.57981581,1830.4,1830.2,0.8146]
[1743451201029,4.57981581,1830.4,1830.0,6.1347]
[1743451201180,4.57981581,1830.2,1830.0,0.7587]
[1743451201900,4.57981581,1830.2,1830.0,6.22305]
[1743451202406,4.57981581,1830.3,1830.0,6.22314]
[1743451202706,4.57981581,1830.1,1830.0,0.7587]
[1743451202882,4.57981581,1830.1,1829.9,5.58962226]
[1743451203080,4.57981581,1830.1,1829.9,0.12499226]
[1743451203911,5.04126739,1830.1,1829.9,0.12499226]
[1743451204411,10.50556739,1830.1,1829.9,0.12499226]
[1743451204713,0.46145158,1830.1,1829.9,0.12499226]
[1743451204913,4.61451581,1830.2,1829.9,0.12499226]
[1743451205542,4.57981581,1830.0,1829.9,0.12499226]
[1743451205913,10.04429581,1830.0,1829.9,0.12499226]
[1743451206146,4.57981581,1830.0,1829.9,0.12499226]
[1743451206831,10.04429581,1830.0,1829.9,0.12499226]
[1743451207148,11.59515339,1830.0,1829.9,0.12499226]
[1743451207342,12.38635339,1830.0,1829.9,0.12499226]
[1743451207515,15.38635339,1830.0,1829.9,0.12499226]
[1743451208150,15.80251149,1830.0,1829.9,0.12499226]
[1743451209046,15.38635339,1830.0,1829.9,0.12499226]
[1743451209218,12.38635339,1830.0,1829.9,0.12499226]
[1743451209812,15.38635339,1830.0,1829.9,0.12499226]
[1743451210018,10.80653758,1830.0,1829.9,0.12499226]
[1743451210224,15.38635339,1830.0,1829.9,0.12499226]
[1743451211362,15.78749821,1830.0,1829.9,0.12499226]
[1743451212127,12.38635339,1830.0,1829.9,0.12499226]
[1743451216959,0.0347,1830.2,1829.9,0.12499226]
[1743451217123,4.61451581,1830.2,1829.9,0.87899226]
[1743451217534,4.61451581,1830.2,1829.9,0.754]
[1743451217751,4.58281581,1830.0,1829.6,0.754]
[1743451217934,4.58281581,1830.0,1829.6,6.21946]
[1743451218156,4.58281581,1830.0,1829.6,11.68501]
[1743451218353,0.003,1830.0,1829.8,6.23556]
[1743451219369,4.58281581,1830.0,1829.8,0.7706]
[1743451219769,5.46493,1829.9,1829.3,0.7798]
[1743451219943,4.57981581,1829.8,1829.4,5.52076693]
[1743451220152,4.57981581,1829.8,1829.5,5.46587]
[1743451220460,4.57981581,1829.8,1829.5,5.46585]
[1743451220650,4.57981581,1829.8,1829.5,0.7955]
[1743451221261,5.58427539,1829.8,1829.5,0.7955]
[1743451221672,5.46478,1829.9,1829.5,0.7955]
[1743451221875,10.04464581,1829.9,1829.5,0.7955]
[1743451222776,4.57981581,1829.7,1829.5,0.7955]
[1743451223377,0.003,1830.0,1829.5,6.26141]
[1743451223378,5.46754,1830.0,1829.5,6.26141]
[1743451223677,4.57981581,1829.8,1829.5,0.7955]
[1743451223894,0.0347,1829.7,1829.5,0.7955]
[1743451226747,4.61451581,1829.7,1829.5,0.7955]
[1743451228249,0.0347,1829.7,1829.6,5.46567]
[1743451228456,0.0347,1829.7,1829.6,6.33782699]
[1743451229603,0.0347,1829.7,1829.6,6.74709022]
[1743451229910,0.0347,1829.7,1829.6,6.69243323]
[1743451230105,0.0347,1829.7,1829.6,6.28317]
[1743451231400,0.0347,1829.7,1829.6,11.66017]
[1743451231593,0.0347,1829.7,1829.6,12.06941247]
[1743451233374,0.0347,1829.7,1829.6,15.06941247]
[1743451234906,0.0347,1829.7,1829.6,12.06941247]
[1743451235905,0.0347,1829.7,1829.6,13.1622524]
[1743451236412,0.0347,1829.7,1829.6,16.1622524]
[1743451237006,0.0347,1829.7,1829.6,16.7122524]
[1743451237780,0.0377,1829.7,1829.6,16.7122524]
[1743451238507,1e-05,1829.7,1829.6,16.7122524]
[1743451238807,4.57981581,1830.7,1830.4,6.28117]
[1743451239003,4.57981581,1830.7,1830.4,11.74431]
[1743451239186,4.57981581,1830.7,1830.5,5.46294]
[1743451239383,0.7533,1830.9,1830.6,5.46268]
[1743451239579,5.33311581,1830.9,1830.6,5.46268]
[1743451239782,5.86642739,1830.9,1830.5,5.46294]
[1743451239986,5.86642739,1830.9,1830.5,10.92583]
[1743451240179,4.57981581,1831.0,1830.6,5.46252]
[1743451240408,4.57981581,1831.0,1830.8,5.46208]
[1743451240613,4.57981581,1831.0,1830.7,5.376]
[1743451240818,4.57981581,1831.0,1830.7,10.83831]
[1743451240985,4.57981581,1831.0,1830.7,5.376]
[1743451241297,5.03779739,1831.0,1830.7,10.83825]
[1743451241499,4.57981581,1831.1,1830.8,6.22044]
[1743451241677,0.769,1831.4,1830.9,5.46178]
[1743451241881,0.769,1831.4,1830.9,5.46167]
[1743451242122,4.57981581,1831.3,1831.0,5.46149]
[1743451242280,5.11469739,1831.3,1831.0,5.46149]
[1743451242487,0.769,1831.4,1831.1,5.46105]
[1743451242488,5.34881581,1831.4,1831.1,5.46105]
[1743451242684,4.57981581,1831.4,1830.9,5.46177]
[1743451243002,4.57981581,1831.4,1830.9,10.92338]
[1743451243207,4.57981581,1831.2,1830.9,5.46161]
[1743451244098,4.57981581,1831.2,1831.0,5.46147]
[1743451244418,6.24511,1831.6,1831.0,10.92282]
[1743451244419,4.57981581,1831.4,1831.0,10.92282]
[1743451244584,0.45798158,1831.4,1831.1,5.46113]
[1743451244789,6.24511,1831.6,1831.1,6.22573]
[1743451244993,4.57981581,1831.5,1831.1,6.22573]
[1743451246128,4.57981581,1831.5,1831.1,0.7646]
[1743451247022,4.57981581,1831.5,1831.1,6.22578]
[1743451247786,4.57981581,1831.5,1831.2,5.46089]
[1743451247990,4.57981581,1831.5,1831.2,5.46073]
[1743451248392,4.57981581,1831.5,1831.1,11.68683]
[1743451248720,5.03779739,1831.5,1831.1,6.22563]
[1743451249020,4.57981581,1831.3,1831.1,0.7646]
[1743451249317,10.04055581,1831.3,1831.0,0.40579345]
[1743451249506,4.57981581,1831.3,1830.9,6.1444]
[1743451250105,10.04048581,1831.3,1830.9,6.1444]
[1743451250307,4.57981581,1831.1,1830.9,0.7714]
[1743451250631,15.50254581,1831.1,1830.6,5.46266]
[1743451250819,10.04114581,1831.1,1830.6,5.46266]
[1743451251023,4.57981581,1831.1,1830.7,5.46231]
[1743451251197,4.57981581,1831.1,1830.7,10.92456]
[1743451251403,5.76507525,1831.1,1830.8,5.46206]
[1743451251827,4.57981581,1831.1,1830.7,5.46225]
[1743451252109,4.57981581,1831.1,1830.7,5.46238]
[1743451252318,10.04101581,1831.1,1830.6,5.46257]
[1743451253230,10.04101581,1831.1,1830.6,10.92514]
[1743451253617,4.57981581,1831.1,1830.6,10.92514]
[1743451253939,6.21078739,1831.1,1830.7,10.97923668]
[1743451254136,6.21078739,1831.1,1830.8,5.46198]
[1743451254429,4.57981581,1831.1,1830.8,5.46198]
[1743451254932,4.57981581,1831.1,1830.8,6.22537]
[1743451255448,4.57981581,1831.1,1830.8,0.7634]
[1743451255815,4.57981581,1831.1,1830.8,6.22539]
[1743451256441,4.57981581,1831.3,1830.9,10.92345]
[1743451256624,5.58383039,1831.3,1830.9,10.92345]
[1743451256942,5.58383039,1831.3,1830.9,10.97794361]
[1743451257123,14.26704739,1831.5,1831.0,5.46134]
[1743451257327,19.72724739,1831.5,1831.0,5.46134]
[1743451257720,5.80699739,1831.5,1831.1,5.46116]
[1743451258118,5.40291581,1831.7,1831.3,5.46047]
[1743451258450,4.57981581,1831.7,1831.4,5.46026]
[1743451258956,4.57981581,1831.5,1831.2,0.7977]
[1743451259759,4.57981581,1831.5,1831.2,6.25859]
[1743451260265,4.57981581,1831.5,1831.2,0.7977]
[1743451260458,5.65888339,1831.5,1831.0,6.1637]
[1743451260654,4.57981581,1831.1,1830.8,0.7907]
[1743451260835,4.57981581,1831.1,1830.8,6.1627]
[1743451261550,10.04108581,1831.1,1830.8,5.372]
[1743451261753,10.04108581,1831.1,1830.6,0.7651]
[1743451261953,10.04161581,1830.9,1830.4,10.92629]
[1743451262162,4.57981581,1830.9,1830.5,5.46296]
[1743451262333,4.57981581,1830.7,1830.4,6.22822]
[1743451262521,4.57981581,1830.5,1830.2,37.72455]
[1743451262735,4.57981581,1830.5,1830.2,31.505]
[1743451262933,5.35561581,1830.5,1830.2,31.505]
[1743451263383,10.81862581,1830.5,1830.2,31.505]
[1743451263663,4.57981581,1830.3,1830.2,31.505]
[1743451263837,5.35561581,1830.5,1830.2,31.505]
[1743451266346,0.7758,1830.5,1830.2,31.505]
[1743451266973,0.7758,1830.5,1830.2,36.96888]
[1743451267175,0.7758,1830.5,1830.2,31.505]
[1743451267676,4.57981581,1830.4,1830.2,31.505]
[1743451268255,0.7758,1830.5,1830.2,36.96881]
[1743451268457,4.57981581,1830.6,1830.2,36.96881]
[1743451268785,4.57981581,1830.8,1830.4,11.7576]
[1743451269085,4.57981581,1830.8,1830.5,5.46298]
[1743451269785,4.57981581,1831.0,1830.7,5.46229]
[1743451269980,5.46191,1830.9,1830.4,0.8314]
[1743451270211,4.57981581,1830.6,1830.4,0.8314]
[1743451270909,4.57981581,1830.6,1830.2,43.13426]
[1743451271210,4.57981581,1830.6,1830.2,11.62926]
[1743451271410,4.57981581,1830.6,1830.3,5.46345]
[1743451271611,4.57981581,1830.6,1830.3,10.92686]
[1743451271785,4.57981581,1830.8,1830.4,5.51780701]
[1743451271974,4.57981581,1830.8,1830.4,5.46318]
[1743451272175,4.57981581,1830.8,1830.4,0.05462579]
[1743451272375,4.57981581,1830.8,1830.4,5.46303]
[1743451272699,4.57981581,1830.8,1830.6,5.4625]
[1743451273575,4.57981581,1830.9,1830.5,5.46289]
[1743451273808,4.57981581,1830.9,1830.5,10.92571]
[1743451274107,4.57981581,1830.9,1830.5,5.46283]
[1743451274309,4.57981581,1830.9,1830.6,5.51711132]
[1743451274613,4.57981581,1830.9,1830.7,0.8267]
[1743451274913,4.57981581,1830.9,1830.6,5.46249]
[1743451275125,4.57981581,1830.9,1830.6,0.05462131]
[1743451275291,4.57981581,1830.9,1830.5,11.74062]
[1743451275701,4.57981581,1830.9,1830.6,0.0546213]
[1743451276210,4.57981581,1830.9,1830.5,6.27762]
[1743451277390,15.50376581,1830.9,1830.4,5.46316]
[1743451277582,4.57981581,1830.7,1830.4,11.42292703]
[1743451277782,5.46154,1831.0,1830.5,6.25089]
[1743451277978,4.57981581,1831.1,1830.7,5.46227]
[1743451278199,10.04107581,1831.1,1830.6,10.97980141]
[1743451278411,4.57981581,1831.1,1830.8,5.46188]
[1743451278596,4.57981581,1831.1,1830.9,0.546188]
[1743451279206,0.7744,1831.2,1830.9,0.546188]
[1743451279381,0.7744,1831.2,1830.9,6.007938]
[1743451279588,0.7744,1831.2,1830.9,0.546188]
[1743451279884,4.57981581,1831.1,1830.9,0.546188]
[1743451280494,10.04128581,1831.1,1830.6,5.46257]
[1743451280683,5.46153,1831.0,1830.6,6.22397]
[1743451280880,4.57981581,1830.7,1830.4,0.7614]
[1743451281121,4.57981581,1830.5,1830.2,6.2251]
[1743451281313,4.57981581,1830.5,1830.3,6.08609]
[1743451282381,4.57981581,1830.5,1830.3,0.62251]
[1743451282898,4.57981581,1830.5,1830.3,6.08608]
[1743451283293,4.57981581,1830.5,1830.3,0.62251]
[1743451283818,4.57981581,1830.7,1830.3,6.08584]
[1743451284018,4.57981581,1830.7,1830.4,0.608584]
[1743451284219,4.57981581,1830.7,1830.5,5.46288]
[1743451284522,4.57981581,1830.9,1830.5,6.25913]
[1743451284696,4.57981581,1830.9,1830.6,5.46258]
[1743451285294,4.57981581,1830.9,1830.5,6.25913]
[1743451285497,4.57981581,1830.9,1830.5,16.50913]
[1743451285925,4.57981581,1830.9,1830.5,11.0463]
[1743451286132,5.46317,1830.5,1830.2,10.65845906]
[1743451286298,4.57981581,1830.4,1830.2,0.40845906]
[1743451286812,4.57981581,1830.4,1830.1,48.03469]
[1743451287013,4.57981581,1830.4,1830.1,42.5706]
[1743451287633,4.57981581,1830.4,1830.1,48.03476]
[1743451287799,4.57981581,1830.4,1830.1,41.759]
[1743451288001,5.39841581,1830.4,1830.1,41.759]
[1743451289604,10.86174581,1830.4,1830.1,41.759]
[1743451290221,4.57981581,1830.2,1830.1,41.759]
[1743451290532,4.57981581,1830.2,1830.1,31.509]
[1743451291428,6.21845,1830.1,1829.8,10.25]
[1743451291605,4.57981581,1829.9,1829.8,10.25]
[1743451297047,4.57981581,1829.9,1829.8,15.71507]
[1743451297212,5.34281581,1830.4,1829.8,21.90791]
[1743451297416,5.34281581,1830.4,1830.1,5.46404]
[1743451298044,4.57981581,1830.2,1830.0,5.46448]
[1743451298227,4.57981581,1830.2,1829.9,10.92944]
[1743451298424,4.57981581,1830.0,1829.8,10.25]
[1743451299322,4.57981581,1830.0,1829.8,15.7149]
[1743451299939,4.57981581,1830.0,1829.8,10.25]
[1743451300455,4.57981581,1830.0,1829.8,15.71506]
[1743451300656,4.57981581,1830.0,1829.8,10.25]
[1743451303160,4.57981581,1830.0,1829.6,27.33955]
[1743451303360,4.57981581,1830.0,1829.6,17.08955]
[1743451303541,4.57981581,1830.0,1829.6,11.62402]
[1743451304063,4.57981581,1830.0,1829.6,17.08956]
[1743451305470,0.8054,1830.1,1829.6,6.1585]
[1743451305675,10.82743581,1830.3,1829.9,5.46467]
[1743451305870,4.57981581,1830.3,1830.0,1.320067]
[1743451306075,4.57981581,1830.3,1830.0,17.034297]
[1743451306264,4.57981581,1830.3,1830.0,22.498657]
[1743451306465,4.57981581,1830.3,1830.0,17.034297]
[1743451306844,4.57981581,1830.3,1830.1,6.1847021]
[1743451307045,4.57981581,1830.3,1830.1,5.46409]
[1743451307841,4.57981581,1830.3,1830.1,5.46404]
[1743451308360,4.57981581,1830.5,1830.2,5.46388]
[1743451308767,4.57981581,1830.5,1830.1,10.92826]
[1743451308955,4.57981581,1830.5,1830.1,15.71413]
[1743451309161,10.04282581,1830.5,1830.1,15.71413]
[1743451309973,4.57981581,1830.5,1830.1,15.71413]
[1743451310347,4.57981581,1830.5,1830.1,15.71404]
[1743451310551,4.57981581,1830.5,1830.2,21.17759]
[1743451310777,4.57981581,1830.5,1830.3,5.46345]
[1743451311078,4.57981581,1830.5,1830.2,10.9275]
[1743451311273,8.46214,1830.8,1830.3,5.46342]
[1743451311584,4.57981581,1830.7,1830.3,16.53252]
[1743451311881,10.04221581,1830.7,1830.3,16.53252]
[1743451312247,10.04221581,1830.7,1830.3,11.0691]
[1743451312649,5.4627,1830.6,1830.3,11.0691]
[1743451312968,15.50486581,1830.7,1830.3,10.25]
[1743451313166,11.97465239,1830.7,1830.3,10.25]
[1743451313371,10.04221581,1830.7,1830.3,15.71356]
[1743451313880,4.57981581,1830.7,1830.3,21.17699]
[1743451314069,10.04223581,1830.7,1830.3,15.71343]
[1743451314484,4.57981581,1830.7,1830.3,21.17688]
[1743451314682,4.57981581,1830.7,1830.4,5.46321]
[1743451314980,4.57981581,1830.8,1830.6,6.28826]
[1743451315152,4.57981581,1830.8,1830.6,16.53826]
[1743451315352,4.57981581,1830.8,1830.6,11.0756]
[1743451315679,10.04190581,1830.8,1830.7,10.25]
[1743451315881,6.23566,1830.7,1830.4,10.25]
[1743451316069,4.57981581,1830.6,1830.2,11.67856]
[1743451316264,4.57981581,1830.6,1830.2,21.92856]
[1743451316666,4.57981581,1830.6,1830.3,5.46357]
[1743451316985,4.57981581,1830.7,1830.2,16.46465]
[1743451317156,5.37501581,1830.9,1830.6,5.46268]
[1743451317357,5.37501581,1830.9,1830.6,10.25]
[1743451317989,10.83690581,1830.9,1830.6,10.25]
[1743451318288,4.57981581,1830.7,1830.6,10.25]
[1743451319276,0.7907,1831.3,1830.6,16.53480299]
[1743451319478,0.7907,1831.3,1831.1,5.46117]
[1743451319678,5.33641581,1831.6,1831.2,10.92149]
[1743451319897,5.33641581,1831.6,1831.3,5.46059]
[1743451320261,5.33641581,1831.6,1831.2,21.17147]
[1743451320691,5.33641581,1831.6,1831.3,5.46059]
[1743451321063,0.05,1831.9,1831.5,0.8227]
[1743451321266,0.05,1831.9,1831.6,5.4597]
[1743451321267,4.62981581,1831.9,1831.6,5.4597]
[1743451321486,0.05,1831.9,1831.6,5.51429395]
[1743451321789,0.05,1831.9,1831.7,5.45931]
[1743451321995,0.05,1831.9,1831.8,15.70911]
[1743451322359,0.05,1831.9,1831.8,21.83301]
[1743451322565,0.05,1831.9,1831.8,22.38301]
[1743451324215,0.05,1831.9,1831.8,22.78506025]
[1743451325117,0.05,1831.9,1831.8,25.78506025]
[1743451327498,0.05,1831.9,1831.8,26.8828319]
[1743451327897,0.05,1831.9,1831.8,33.0528319]
[1743451328192,10.79969581,1832.7,1832.2,5.45777]
[1743451328388,10.79969581,1832.7,1832.3,15.571]
[1743451328894,10.79969581,1832.7,1832.3,21.02859]
[1743451329298,5.34321581,1832.7,1832.4,0.0545675]
[1743451329477,5.34321581,1832.7,1832.4,10.2]
[1743451329478,4.57981581,1832.7,1832.4,10.2]
[1743451329667,4.57981581,1832.7,1832.4,15.65725]
[1743451330080,4.57981581,1832.7,1832.4,10.2]
[1743451330279,10.81613581,1832.5,1832.4,10.2]
[1743451331788,5.45775,1832.3,1832.1,10.2]
[1743451332014,10.03789581,1832.2,1832.0,10.2]
[1743451334120,4.57981581,1832.2,1832.0,10.2]
[1743451334294,15.49470581,1832.4,1832.0,10.2]
[1743451334495,10.03716581,1832.4,1832.0,10.2]
[1743451334822,5.45763,1832.3,1832.0,10.2]
[1743451335388,10.91488,1832.4,1832.0,10.2]
[1743451335597,0.7617,1832.8,1832.1,10.2]
[1743451335838,4.62981581,1832.9,1832.4,0.776]
[1743451336145,4.62981581,1832.9,1832.5,10.91377]
[1743451336308,4.62981581,1832.9,1832.6,10.2]
[1743451336924,4.57981581,1832.7,1832.6,10.2]
[1743451338124,10.03624581,1832.7,1832.6,10.2]
[1743451339199,12.39659539,1832.7,1832.6,10.2]
[1743451339401,0.05,1832.9,1832.8,5.45613]
[1743451339598,0.05,1832.9,1832.8,14.38513]
[1743451340620,0.05,1832.9,1832.8,14.79901981]
[1743451341125,0.05,1832.9,1832.8,14.24901981]
[1743451341793,0.05,1832.9,1832.8,15.00911981]
[1743451343650,0.05,1832.9,1832.8,25.75911981]
[1743451343994,0.05,1832.9,1832.8,25.20911981]
[1743451344429,0.05,1832.9,1832.8,26.32298105]
[1743451345105,0.05,1832.9,1832.8,23.32298105]
[1743451349803,0.05,1832.9,1832.8,23.83153083]
[1743451350651,0.05,1832.9,1832.8,23.07143083]
[1743451350942,0.05,1832.9,1832.8,12.23630083]
[1743451351118,0.05,1832.9,1832.8,10.70854978]
[1743451351515,5.45643,1832.7,1832.6,10.2]
[1743451351828,11.89541381,1832.7,1832.6,10.2]
[1743451356016,11.89541381,1832.7,1832.0,17.09274]
[1743451356017,10.91454,1832.5,1832.2,10.2]
[1743451356213,4.57981581,1832.3,1832.2,10.2]
[1743451357229,10.80422581,1832.7,1832.3,5.45745]
[1743451357534,4.57981581,1832.5,1832.3,5.45745]
[1743451358136,4.57981581,1832.5,1832.2,10.61746152]
[1743451358341,10.85883581,1832.3,1832.2,10.61746152]
[1743451358537,10.85883581,1832.3,1832.2,10.2]
[1743451359059,6.28051,1831.8,1831.7,10.2]
[1743451359209,6.28051,1831.8,1831.5,10.2]
[1743451359210,0.8214,1831.8,1831.5,10.2]
[1743451359410,4.57981581,1831.7,1831.5,15.71443313]
[1743451359610,4.57981581,1831.7,1831.6,5.4597]
[1743451359921,4.57981581,1831.9,1831.7,5.45926]
[1743451360325,6.27967,1832.1,1831.7,5.45926]
[1743451360515,4.57981581,1832.0,1831.7,5.45926]
[1743451360711,4.57981581,1832.2,1831.9,5.45866]
[1743451361039,4.57981581,1832.0,1831.9,10.2]
[1743451361722,10.5376896,1832.2,1831.9,10.2]
[1743451362524,5.0796796,1832.2,1831.9,15.71332122]
[1743451362720,10.5375996,1832.2,1831.9,10.2]
[1743451363831,15.9957296,1832.2,1831.9,10.2]
[1743451364134,17.67127256,1832.2,1831.9,10.2]
[1743451364443,12.21314256,1832.2,1831.9,10.2]
[1743451364738,12.21314256,1832.2,1832.0,10.2]
[1743451364942,17.67124256,1832.2,1832.0,10.2]
[1743451365742,5.45821,1832.1,1832.0,10.2]
[1743451365939,5.45821,1832.1,1831.9,10.2]
[1743451366440,12.21314256,1832.2,1831.9,10.2]
[1743451366622,5.45823,1832.1,1831.9,10.2]
[1743451367140,12.21314256,1832.2,1831.9,10.2]
[1743451367312,10.5375996,1832.2,1831.9,10.25458125]
[1743451367511,5.45792,1832.2,1831.9,10.2]
[1743451367717,5.45792,1832.2,1831.9,15.65879]
[1743451367962,10.5375996,1832.2,1831.9,15.65879]
[1743451368244,5.0796796,1832.2,1831.9,21.11746]
[1743451368413,5.0796796,1832.2,1831.9,15.65867]
[1743451368819,10.5376196,1832.2,1831.9,15.65867]
[1743451369551,10.5376196,1832.2,1831.9,10.2]
[1743451369953,6.75517856,1832.2,1831.9,10.2]
[1743451370151,11.3431896,1832.0,1831.9,10.2]
[1743451370726,5.45884,1831.9,1831.7,10.2]
[1743451371057,0.45798158,1832.4,1831.7,10.2]
[1743451371058,5.82598158,1832.4,1831.7,10.2]
[1743451371227,11.3424696,1832.3,1831.9,5.45866]
[1743451371540,11.3424696,1832.3,1831.9,10.91737]
[1743451371738,13.06825172,1832.3,1831.9,21.11736]
[1743451371924,13.06824172,1832.3,1831.9,21.11734]
[1743451372124,13.06824172,1832.3,1831.9,15.65866]
[1743451372758,5.45801,1832.2,1831.9,10.2]
[1743451373635,18.52595172,1832.3,1831.9,15.65865]
[1743451374361,10.5373096,1832.3,1832.0,5.45841]
[1743451374932,10.5373096,1832.3,1831.9,26.48534]
[1743451375232,5.0796796,1832.3,1832.0,5.45835]
[1743451375533,0.8037,1832.5,1832.2,5.4578]
[1743451375842,5.0796796,1832.7,1832.3,0.05457616]
[1743451376046,5.0796796,1832.7,1832.4,10.91438]
[1743451376250,5.0796796,1832.7,1832.4,5.45719]
[1743451376636,10.5361196,1832.7,1832.4,5.45719]
[1743451378463,10.5856796,1832.9,1832.5,5.45691]
[1743451378764,5.506,1832.9,1832.5,11.74549897]
[1743451378952,5.506,1832.9,1832.5,11.69093]
[1743451379462,5.45619,1832.8,1832.5,6.234]
[1743451380260,5.45619,1832.8,1832.5,0.7771]
[1743451380869,5.45619,1832.8,1832.5,6.23408]
[1743451381169,10.91249,1832.8,1832.5,0.7771]
[1743451381365,10.91249,1832.8,1832.4,10.2]
[1743451381366,10.91314,1832.7,1832.4,10.2]
[1743451381569,5.45655,1832.7,1832.4,15.65722]
[1743451381871,12.93737656,1832.8,1832.5,5.45698]
[1743451382067,12.93737656,1832.8,1832.4,15.65722]
[1743451382266,12.93737656,1832.8,1832.4,21.11445]
[1743451382566,18.39368656,1832.8,1832.4,15.65722]
[1743451382771,12.93737656,1832.8,1832.4,15.65722]
[1743451383065,5.45645,1832.7,1832.4,15.65722]